bitfinex/quotes_SOLUSD_20251119
["timestamp","ask_amount","ask_price","bid_price","bid_amount"]
[1763569401910,1.82,134.45,134.37,6.36520467]
[1763569402218,6.36520467,134.42,134.38,0.68]
[1763569402390,6.36520467,134.4,134.38,0.68]
[1763569402590,1.82,134.46,134.39,6.36520467]
[1763569402791,1.82,134.52,134.42,6.36520467]
[1763569403092,9.78882769,134.51,134.43,0.68]
[1763569403293,6.36520467,134.45,134.4,7.04520467]
[1763569403514,6.36520467,134.44,134.41,0.68]
[1763569403708,18.12096,134.46,134.41,0.68]
[1763569404102,6.36520467,134.44,134.41,0.68]
[1763569404309,6.36520467,134.43,134.41,0.68]
[1763569404614,6.36520467,134.44,134.41,0.68]
[1763569404818,6.36520467,134.42,134.41,0.67]
[1763569405007,6.36520467,134.42,134.37,0.67]
[1763569405210,6.36520467,134.39,134.37,0.67]
[1763569405590,6.36520467,134.4,134.37,0.67]
[1763569405787,6.36520467,134.41,134.37,0.67]
[1763569406010,18.12096,134.42,134.38,6.36520467]
[1763569406322,18.12096,134.42,134.39,0.67]
[1763569407329,6.36520467,134.44,134.39,0.67]
[1763569407534,18.12096,134.44,134.39,0.67]
[1763569407707,6.36520467,134.42,134.39,0.67]
[1763569408324,6.36520467,134.41,134.39,0.67]
[1763569408522,6.36520467,134.4,134.36,0.67]
[1763569408713,6.36520467,134.39,134.36,0.67]
[1763569409203,18.12096,134.41,134.36,0.67]
[1763569409409,6.36520467,134.39,134.36,0.67]
[1763569409611,6.36520467,134.4,134.36,0.67]
[1763569409827,18.12096,134.41,134.36,0.67]
[1763569410000,18.12096,134.41,134.36,14.477805]
[1763569410204,6.36520467,134.4,134.37,0.67]
[1763569410404,6.36520467,134.39,134.37,0.67]
[1763569410602,18.12096,134.41,134.37,0.67]
[1763569410603,24.48616467,134.41,134.37,0.67]
[1763569410825,18.12096,134.42,134.37,0.67]
[1763569411024,6.36520467,134.41,134.37,0.67]
[1763569411438,6.36520467,134.4,134.37,0.67]
[1763569411723,6.36520467,134.39,134.37,0.67]
[1763569413246,6.36520467,134.41,134.37,0.67]
[1763569413543,6.36520467,134.4,134.37,0.67]
[1763569413744,8.18520467,134.43,134.37,0.67]
[1763569413906,6.36520467,134.41,134.37,0.67]
[1763569414419,6.36520467,134.42,134.37,0.67]
[1763569414950,9.82882093,134.42,134.37,0.67]
[1763569415244,9.82882093,134.4,134.37,0.67]
[1763569415403,9.82882093,134.39,134.37,0.67]
[1763569415748,9.82882093,134.4,134.37,0.67]
[1763569415911,9.82882093,134.38,134.34,0.67]
[1763569416121,9.82882093,134.37,134.34,0.67]
[1763569416744,9.82882093,134.38,134.34,0.67]
[1763569416944,1.82,134.43,134.34,0.67]
[1763569417148,9.82882093,134.41,134.34,10.49882093]
[1763569417545,9.82882093,134.41,134.35,0.67]
[1763569417855,9.82882093,134.4,134.35,0.67]
[1763569418019,9.82882093,134.39,134.35,0.67]
[1763569418660,9.82882093,134.41,134.35,0.67]
[1763569418829,9.82882093,134.41,134.35,8.11314628]
[1763569419026,9.82882093,134.41,134.35,17.94196721]
[1763569419334,9.82882093,134.42,134.36,10.49882093]
[1763569419525,9.82882093,134.44,134.37,9.82882093]
[1763569419720,37.43542343,134.56,134.37,2.49]
[1763569419721,9.82882093,134.43,134.37,2.49]
[1763569419946,9.82882093,134.43,134.38,0.67]
[1763569420531,9.82882093,134.42,134.38,0.67]
[1763569420726,9.82882093,134.41,134.38,0.67]
[1763569421149,9.82882093,134.42,134.38,0.67]
[1763569421548,9.82882093,134.41,134.38,0.67]
[1763569422234,9.82882093,134.42,134.38,0.67]
[1763569423266,9.82882093,134.42,134.35,0.67]
[1763569423267,9.82882093,134.39,134.35,0.67]
[1763569423562,9.82882093,134.39,134.33,9.82882093]
[1763569424044,9.82882093,134.39,134.34,0.67]
[1763569425255,19.94096,134.42,134.34,0.67]
[1763569425256,9.82882093,134.36,134.34,0.67]
[1763569425624,18.12096,134.39,134.32,0.67]
[1763569425625,9.82882093,134.35,134.32,0.67]
[1763569425826,9.82882093,134.34,134.32,0.67]
[1763569426150,9.82882093,134.35,134.32,0.67]
[1763569426655,27.90978769,134.39,134.32,0.67]
[1763569426656,9.82882093,134.36,134.32,0.67]
[1763569426854,1.82,134.37,134.31,0.67]
[1763569427649,9.82882093,134.35,134.31,0.67]
[1763569427833,43.38875007,134.53,134.35,7.44324525]
[1763569428035,9.82882093,134.42,134.37,9.82882093]
[1763569428235,9.82882093,134.42,134.37,10.49882093]
[1763569428457,9.82882093,134.41,134.37,0.67]
[1763569428955,11.60882769,134.46,134.37,0.67]
[1763569429151,9.82882093,134.41,134.37,0.67]
[1763569429543,9.82882093,134.42,134.37,10.49882093]
[1763569429854,9.82882093,134.42,134.37,0.67]
[1763569430061,9.82882093,134.41,134.38,0.66]
[1763569430853,27.94978093,134.39,134.33,10.48882093]
[1763569431075,9.82882093,134.37,134.34,0.66]
[1763569431457,18.12096,134.39,134.34,0.66]
[1763569431763,9.82882093,134.37,134.34,0.66]
[1763569431977,18.12096,134.39,134.34,0.66]
[1763569432167,18.12096,134.39,134.35,9.82882093]
[1763569432355,27.94978093,134.39,134.36,0.66]
[1763569432680,9.82882093,134.38,134.34,0.66]
[1763569432904,27.94978093,134.39,134.35,0.66]
[1763569433388,9.78882769,134.42,134.35,0.66]
[1763569433389,1.99999999,134.5,134.37,9.82882093]
[1763569433549,9.82882093,134.39,134.35,0.66]
[1763569433749,16.9604962,134.49,134.35,0.66]
[1763569433750,9.82882093,134.38,134.35,0.66]
[1763569433969,9.82882093,134.39,134.35,0.66]
[1763569434359,9.82882093,134.37,134.33,0.66]
[1763569434562,9.82882093,134.36,134.3,0.66]
[1763569434820,9.82882093,134.35,134.31,0.66]
[1763569434989,9.82882093,134.34,134.31,0.66]
[1763569435190,1.82,134.38,134.31,0.66]
[1763569435488,9.82882093,134.35,134.31,0.66]
[1763569435852,1.82,134.38,134.33,9.82882093]
[1763569436166,9.82882093,134.37,134.32,9.82882093]
[1763569436568,9.82882093,134.37,134.33,0.66]
[1763569437072,1.82,134.4,134.34,9.82882093]
[1763569437310,15.21563524,134.39,134.34,9.82882093]
[1763569437582,9.82882093,134.38,134.34,0.66]
[1763569438049,19.94096,134.4,134.34,0.66]
[1763569438249,9.82882093,134.38,134.34,0.66]
[1763569438453,15.22697984,134.37,134.34,0.66]
[1763569438658,9.82882093,134.37,134.34,0.66]
[1763569438861,5.39586297,134.36,134.34,0.66]
[1763569439065,9.82882093,134.38,134.34,0.66]
[1763569439269,5.41114362,134.37,134.34,10.48882093]
[1763569439483,29.76978093,134.4,134.35,9.82882093]
[1763569439691,9.82882093,134.38,134.35,0.66]
[1763569439988,5.41179008,134.37,134.36,0.66]
[1763569440361,5.41179008,134.37,134.34,0.66]
[1763569440585,5.41179008,134.36,134.34,0.66]
[1763569440888,4.86970757,134.4,134.34,10.48882093]
[1763569440889,9.82882093,134.39,134.34,10.48882093]
[1763569441062,5.41790899,134.38,134.35,0.66]
[1763569441261,5.41790899,134.37,134.35,0.66]
[1763569441466,5.41790899,134.36,134.35,0.66]
[1763569441688,15.24672992,134.36,134.29,0.66]
[1763569441880,18.12096,134.38,134.27,0.66]
[1763569441881,9.82882093,134.31,134.27,0.66]
[1763569442186,5.41790899,134.3,134.27,0.66]
[1763569442389,5.41790899,134.29,134.27,0.66]
[1763569442697,5.41790899,134.28,134.27,0.66]
[1763569442873,5.41790899,134.28,134.27,10.48882093]
[1763569443079,9.82882093,134.32,134.27,10.48882093]
[1763569443271,9.82882093,134.3,134.28,0.66]
[1763569443467,5.42982468,134.29,134.28,10.48882093]
[1763569443678,5.42982468,134.29,134.26,1.93593088]
[1763569443866,5.42982468,134.28,134.26,1.93593088]
[1763569444081,9.82882093,134.3,134.27,0.66]
[1763569444276,15.25719306,134.29,134.27,0.66]
[1763569444485,5.42837213,134.28,134.27,0.66]
[1763569444684,15.25719306,134.28,134.26,1.93593088]
[1763569444890,5.42837213,134.27,134.26,1.93593088]
[1763569445192,9.82882093,134.29,134.26,1.93593088]
[1763569445406,23.00350715,134.33,134.27,10.48882093]
[1763569445560,9.82882093,134.31,134.28,0.66]
[1763569445763,5.42430014,134.3,134.28,0.66]
[1763569445988,18.12096,134.33,134.28,0.66]
[1763569446195,9.82882093,134.31,134.28,0.66]
[1763569446372,5.42298216,134.3,134.28,0.66]
[1763569446582,5.42298216,134.29,134.28,0.66]
[1763569446763,9.82882093,134.31,134.28,0.66]
[1763569446963,15.24633082,134.3,134.28,0.66]
[1763569447187,9.82882093,134.33,134.28,17.93594633]
[1763569447381,5.41844982,134.32,134.29,0.66]
[1763569448067,9.82882093,134.35,134.3,9.82882093]
[1763569448376,5.42067208,134.34,134.3,9.82882093]
[1763569448583,5.42067208,134.34,134.31,0.66]
[1763569449166,15.24949301,134.34,134.31,0.66]
[1763569449365,9.82882093,134.35,134.31,0.66]
[1763569449567,5.4221624,134.34,134.31,0.66]
[1763569449837,5.4221624,134.34,134.32,9.82882093]
[1763569449977,9.82882093,134.38,134.33,9.82882093]
[1763569450168,5.41996625,134.37,134.33,17.27317438]
[1763569450368,5.41996625,134.37,134.31,0.66]
[1763569450568,5.41996625,134.37,134.27,27.94978093]
[1763569450569,9.82882093,134.33,134.27,27.94978093]
[1763569450775,15.24879597,134.32,134.29,0.66]
[1763569451089,9.82882093,134.33,134.29,0.66]
[1763569451397,9.82882093,134.32,134.29,0.66]
[1763569451575,19.94096,134.37,134.3,9.82882093]
[1763569451779,5.42506577,134.36,134.3,9.82882093]
[1763569451977,9.82882093,134.35,134.31,0.66]
[1763569452183,9.82882093,134.34,134.31,0.66]
[1763569452368,9.82882093,134.33,134.28,9.82882093]
[1763569452571,9.82882093,134.32,134.28,0.66]
[1763569452770,9.82882093,134.32,134.29,0.66]
[1763569452993,4.88484477,134.36,134.29,0.66]
[1763569453171,9.82882093,134.33,134.29,0.66]
[1763569454294,9.82882093,134.34,134.29,17.93529266]
[1763569454688,9.82882093,134.35,134.3,0.66]
[1763569454997,9.82882093,134.34,134.3,0.66]
[1763569455203,19.94096,134.37,134.3,0.66]
[1763569455504,9.82882093,134.34,134.3,0.66]
[1763569455680,9.82882093,134.35,134.3,0.66]
[1763569455883,9.82882093,134.34,134.3,0.66]
[1763569456300,9.82882093,134.35,134.3,10.48882093]
[1763569456480,9.82882093,134.35,134.3,17.9347428]
[1763569456795,9.82882093,134.34,134.31,0.66]
[1763569457391,9.82882093,134.33,134.31,0.66]
[1763569458307,9.82882093,134.32,134.28,0.66]
[1763569458682,9.82882093,134.31,134.28,0.66]
[1763569458982,9.82882093,134.3,134.26,1.93593088]
[1763569459187,9.82882093,134.3,134.28,0.66]
[1763569459388,1.82,134.34,134.28,0.66]
[1763569459698,9.82882093,134.31,134.28,0.66]
[1763569459997,9.82882093,134.32,134.28,0.72]
[1763569460308,9.82882093,134.34,134.28,17.99552344]
[1763569460610,9.82882093,134.33,134.29,0.72]
[1763569460816,9.82882093,134.32,134.29,0.72]
[1763569460977,18.12096,134.36,134.26,1.93593088]
[1763569460978,9.82882093,134.31,134.27,0.72]
[1763569461292,9.82882093,134.3,134.27,0.72]
[1763569461595,18.12096,134.34,134.27,0.72]
[1763569461898,1.82,134.37,134.27,0.72]
[1763569461899,9.82882093,134.33,134.27,10.54882093]
[1763569462077,18.12096,134.35,134.27,10.54882093]
[1763569462273,9.82882093,134.33,134.28,0.72]
[1763569462681,18.12096,134.36,134.3,9.82882093]
[1763569462872,9.82882093,134.36,134.3,1.82]
[1763569463076,1.82,134.41,134.31,0.72]
[1763569463077,9.78882769,134.4,134.31,0.72]
[1763569463379,5.41778878,134.39,134.32,9.82882093]
[1763569463576,9.82882093,134.37,134.31,10.54882093]
[1763569463778,9.82882093,134.37,134.32,9.82882093]
[1763569463974,9.82882093,134.36,134.32,0.72]
[1763569464196,18.12096,134.4,134.33,0.72]
[1763569464386,9.82882093,134.37,134.33,0.72]
[1763569465806,5.41842141,134.36,134.33,0.72]
[1763569466107,18.12096,134.39,134.33,0.72]
[1763569466301,9.82882093,134.36,134.33,0.72]
[1763569466604,9.82882093,134.37,134.33,0.72]
[1763569467504,18.12096,134.39,134.33,8.16429833]
[1763569467706,9.82882093,134.38,134.34,0.68]
[1763569467910,9.82882093,134.37,134.34,0.68]
[1763569468210,9.82882093,134.38,134.34,0.68]
[1763569468592,9.82882093,134.35,134.34,0.68]
[1763569468791,9.82882093,134.36,134.34,0.68]
[1763569469197,9.82882093,134.35,134.32,0.68]
[1763569469588,9.82882093,134.34,134.32,0.68]
[1763569469892,9.82882093,134.33,134.3,0.68]
[1763569471000,6.71590299,134.37,134.3,0.68]
[1763569471193,9.82882093,134.35,134.3,0.68]
[1763569471405,9.82882093,134.34,134.3,0.68]
[1763569471602,9.82882093,134.33,134.3,0.68]
[1763569471905,6.71590299,134.37,134.3,8.12598163]
[1763569471906,9.82882093,134.34,134.3,8.12598163]
[1763569472107,9.82882093,134.34,134.3,0.68]
[1763569472411,9.82882093,134.34,134.31,0.68]
[1763569473816,9.82882093,134.32,134.31,0.68]
[1763569474011,9.82882093,134.32,134.29,1.82]
[1763569474201,9.82882093,134.3,134.28,0.68]
[1763569474708,9.82882093,134.32,134.28,0.68]
[1763569474896,6.42312582,134.33,134.28,0.68]
[1763569475093,18.12096,134.35,134.28,0.68]
[1763569475292,6.42312582,134.32,134.28,8.12696418]
[1763569475494,6.42312582,134.33,134.28,8.12694074]
[1763569475799,1.82,134.37,134.29,0.68]
[1763569475800,19.94096,134.37,134.29,0.68]
[1763569476010,10.33248168,134.36,134.29,0.68]
[1763569476188,5.437792,134.35,134.29,0.68]
[1763569476389,6.42312582,134.32,134.29,0.68]
[1763569477010,6.42312582,134.33,134.29,0.68]
[1763569478417,4.89468968,134.36,134.29,8.12648672]
[1763569478592,6.42312582,134.32,134.29,0.68]
[1763569478787,4.89468968,134.36,134.29,0.68]
[1763569478992,6.42312582,134.32,134.29,0.68]
[1763569480434,6.42312582,134.33,134.29,8.12649771]
[1763569480726,6.42312582,134.32,134.29,0.68]
[1763569481917,4.89468968,134.36,134.29,0.68]
[1763569482221,6.42312582,134.33,134.29,0.68]
[1763569482515,6.42312582,134.32,134.29,0.68]
[1763569483999,6.42312582,134.33,134.29,0.68]
[1763569484531,6.42312582,134.31,134.26,2.61593088]
[1763569484707,11.86954804,134.3,134.26,2.61593088]
[1763569484907,6.42312582,134.28,134.26,1.93593088]
[1763569485594,6.42312582,134.29,134.26,2.61593088]
[1763569485794,6.42312582,134.29,134.26,1.93593088]
[1763569486325,6.69468968,134.32,134.26,1.93593088]
[1763569486326,6.42312582,134.28,134.26,2.61593088]
[1763569486697,6.42312582,134.29,134.26,1.93593088]
[1763569486898,6.42312582,134.29,134.26,2.61593088]
[1763569487097,6.42312582,134.27,134.26,1.93593088]
[1763569487368,24.54408582,134.27,134.26,1.93593088]
[1763569487498,31.77882532,134.27,134.26,1.93593088]
[1763569487897,25.3556995,134.27,134.26,1.93593088]
[1763569488119,31.77882532,134.27,134.26,1.93593088]
[1763569488301,31.77934612,134.27,134.26,1.93593088]
[1763569488502,26.34408582,134.27,134.26,1.93593088]
[1763569489013,6.42312582,134.28,134.26,2.61593088]
[1763569489315,6.42312582,134.29,134.26,2.61593088]
[1763569489627,6.42312582,134.28,134.26,2.61593088]
[1763569489805,6.42312582,134.29,134.26,2.61593088]
[1763569490526,6.42312582,134.28,134.26,2.61593088]
[1763569490824,6.42312582,134.29,134.26,2.61593088]
[1763569491403,18.12096,134.31,134.26,2.61593088]
[1763569491604,6.42312582,134.29,134.27,0.66]
[1763569492202,6.11348012,134.37,134.27,0.66]
[1763569492407,6.42312582,134.33,134.27,7.08312582]
[1763569492636,6.42312582,134.33,134.28,0.66]
[1763569492846,6.42312582,134.32,134.28,0.66]
[1763569493010,6.42312582,134.32,134.28,8.10704984]
[1763569493331,6.42312582,134.33,134.28,8.10704984]
[1763569493541,6.42312582,134.33,134.29,0.66]
[1763569495130,4.89372593,134.35,134.29,0.66]
[1763569495131,6.42312582,134.32,134.29,0.66]
[1763569495331,6.42312582,134.31,134.27,0.66]
[1763569496918,6.42312582,134.3,134.27,0.66]
[1763569497124,6.42312582,134.31,134.27,0.66]
[1763569497336,6.42312582,134.3,134.27,0.66]
[1763569497516,18.12096,134.33,134.28,0.66]
[1763569497708,6.42312582,134.29,134.26,2.59593088]
[1763569497908,6.42312582,134.29,134.27,0.66]
[1763569498135,6.42312582,134.31,134.27,0.66]
[1763569498728,6.42312582,134.3,134.27,0.66]
[1763569499143,6.42312582,134.31,134.27,0.66]
[1763569499520,6.42312582,134.3,134.27,0.66]
[1763569499849,6.42312582,134.31,134.27,8.1076232]
[1763569500134,6.42312582,134.32,134.27,26.72682331]
[1763569500346,6.42312582,134.31,134.28,0.66]
[1763569500752,6.42312582,134.29,134.26,1.93593088]
[1763569501037,6.42312582,134.28,134.27,0.66]
[1763569501224,23.01381371,134.32,134.27,0.66]
[1763569501440,6.42312582,134.28,134.27,0.66]
[1763569501910,6.42312582,134.29,134.27,0.66]
[1763569502114,6.42312582,134.28,134.27,0.66]
[1763569502428,4.89285371,134.32,134.27,0.66]
[1763569502644,6.42312582,134.3,134.27,0.66]
[1763569502946,6.42312582,134.29,134.27,0.66]
[1763569503315,6.42312582,134.28,134.27,62.76]
[1763569503622,6.42312582,134.29,134.27,62.76]
[1763569503824,18.12096,134.31,134.27,0.66]
[1763569504147,6.42312582,134.28,134.26,1.93593088]
[1763569504443,6.42312582,134.29,134.26,1.93593088]
[1763569504822,18.12096,134.33,134.27,0.66]
[1763569505031,6.42312582,134.3,134.27,0.66]
[1763569505235,6.42312582,134.3,134.27,62.76]
[1763569505544,6.42312582,134.3,134.28,0.66]
[1763569506124,18.12096,134.32,134.27,62.1]
[1763569506453,6.42312582,134.36,134.3,6.42312582]
[1763569506748,6.42312582,134.36,134.29,9.78882769]
[1763569506926,5.44593918,134.35,134.3,0.66]
[1763569507133,6.42312582,134.35,134.3,0.66]
[1763569507334,6.42312582,134.34,134.3,0.66]
[1763569507726,6.42312582,134.33,134.3,0.66]
[1763569507949,6.42312582,134.34,134.3,0.66]
[1763569508324,6.42312582,134.35,134.3,0.66]
[1763569508535,5.44936553,134.34,134.3,0.66]
[1763569508849,6.42312582,134.35,134.3,0.66]
[1763569509021,11.87529118,134.34,134.3,0.66]
[1763569509220,6.42312582,134.33,134.3,0.66]
[1763569509521,6.42312582,134.31,134.27,0.66]
[1763569509740,6.42312582,134.31,134.26,1.93593088]
[1763569509741,6.70662593,134.34,134.28,0.66]
[1763569510039,11.87534268,134.33,134.28,0.66]
[1763569510213,6.42312582,134.33,134.28,0.66]
[1763569510645,6.42312582,134.34,134.28,7.08312582]
[1763569510944,6.42312582,134.32,134.28,0.66]
[1763569511150,6.42312582,134.31,134.29,0.66]
[1763569511352,4.90545737,134.34,134.29,62.76]
[1763569511647,6.42312582,134.36,134.31,6.42312582]
[1763569511848,1.8,134.39,134.3,0.66]
[1763569511849,5.45356073,134.35,134.3,0.66]
[1763569512022,6.42312582,134.35,134.3,0.66]
[1763569512219,6.42312582,134.33,134.3,0.66]
[1763569512537,6.42312582,134.32,134.3,0.66]
[1763569512738,11.87758055,134.31,134.28,0.66]
[1763569512942,4.90887516,134.35,134.28,0.66]
[1763569513124,5.45541798,134.34,134.3,6.42312582]
[1763569513328,11.75970372,134.42,134.3,6.42312582]
[1763569513329,24.82983516,134.39,134.3,13.86910023]
[1763569513546,6.42312582,134.36,134.31,0.66]
[1763569513724,5.45822529,134.35,134.31,7.08312582]
[1763569513924,6.42312582,134.35,134.31,0.66]
[1763569514242,6.42312582,134.35,134.32,0.66]
[1763569514433,6.42312582,134.36,134.32,0.66]
[1763569514751,6.42312582,134.33,134.29,0.66]
[1763569514920,5.45461895,134.32,134.31,0.66]
[1763569515247,11.8768727,134.32,134.31,0.66]
[1763569515654,4.90887516,134.35,134.31,0.66]
[1763569515655,23.02983516,134.35,134.31,0.66]
[1763569515868,5.45532762,134.34,134.31,0.66]
[1763569516024,6.42312582,134.33,134.31,0.66]
[1763569516223,6.42312582,134.32,134.31,0.66]
[1763569516418,11.87952234,134.32,134.29,0.66]
[1763569516733,4.90887516,134.36,134.29,0.66]
[1763569516734,6.42312582,134.33,134.29,0.66]
[1763569517126,6.42312582,134.32,134.29,0.66]
[1763569517329,6.42312582,134.34,134.29,0.66]
[1763569517528,11.87774807,134.33,134.29,0.66]
[1763569517845,6.42312582,134.34,134.29,14.52959733]
[1763569518027,5.45304618,134.33,134.29,14.52959733]
[1763569518224,6.70887516,134.36,134.29,14.52959733]
[1763569518225,4.90887516,134.36,134.3,0.66]
[1763569518424,7.93284952,134.43,134.31,9.78882769]
[1763569518732,5.45722604,134.42,134.34,6.42312582]
[1763569519044,6.42312582,134.39,134.34,6.42312582]
[1763569519217,6.42312582,134.37,134.35,0.66]
[1763569519422,11.88030814,134.36,134.33,0.66]
[1763569519622,6.42312582,134.35,134.33,0.66]
[1763569519854,6.42312582,134.34,134.31,0.67]
[1763569520040,6.42312582,134.34,134.32,0.67]
[1763569520556,11.88074851,134.33,134.29,0.67]
[1763569520758,6.42312582,134.32,134.29,0.67]
[1763569520926,6.42312582,134.3,134.27,0.67]
[1763569521238,1.8,134.33,134.27,0.67]
[1763569521435,6.42312582,134.29,134.27,0.67]
[1763569521633,6.42312582,134.3,134.27,0.67]
[1763569521851,1.8,134.33,134.27,0.67]
[1763569522055,5.45762412,134.32,134.27,7.09312582]
[1763569522347,11.75315783,134.32,134.27,0.67]
[1763569522551,6.42312582,134.32,134.28,0.67]
[1763569522732,6.42312582,134.3,134.28,0.67]
[1763569523323,6.42312582,134.3,134.26,2.60593088]
[1763569523640,6.42312582,134.28,134.26,64.70593088]
[1763569524246,6.42312582,134.3,134.27,0.67]
[1763569524455,6.42312582,134.32,134.27,62.77]
[1763569524752,6.42312582,134.31,134.27,62.77]
[1763569524924,6.42312582,134.31,134.28,0.67]
[1763569525124,0.66,134.33,134.27,62.1]
[1763569525426,6.42312582,134.3,134.27,62.81]
[1763569525627,6.42312582,134.32,134.28,0.71]
[1763569525851,6.42312582,134.3,134.27,62.1]
[1763569526048,6.42312582,134.3,134.27,62.81]
[1763569526355,6.42312582,134.3,134.28,0.71]
[1763569526654,6.42312582,134.31,134.28,0.71]
[1763569528161,6.42312582,134.3,134.27,62.1]
[1763569528362,18.79096,134.33,134.27,62.81]
[1763569528664,6.42312582,134.3,134.27,62.81]
[1763569529037,6.42312582,134.3,134.28,0.71]
[1763569529460,6.42312582,134.31,134.28,0.71]
[1763569529657,6.42312582,134.3,134.28,0.71]
[1763569529864,6.42312582,134.31,134.28,0.71]
[1763569530536,6.42312582,134.3,134.28,0.71]
[1763569530737,6.42312582,134.29,134.27,0.71]
[1763569531255,0.67,134.32,134.27,0.71]
[1763569531455,6.42312582,134.3,134.27,0.71]
[1763569531659,6.42312582,134.28,134.26,1.93593088]
[1763569531838,6.42312582,134.27,134.26,1.93593088]
[1763569532243,6.42312582,134.28,134.26,2.64593088]
[1763569532752,1.8,134.3,134.27,0.71]
[1763569532955,6.42312582,134.3,134.27,0.71]
[1763569533434,19.92096,134.33,134.27,0.71]
[1763569533635,6.42312582,134.32,134.27,76.68070374]
[1763569533836,6.42312582,134.32,134.27,62.81]
[1763569534030,23.02131041,134.34,134.28,0.71]
[1763569534335,6.42312582,134.32,134.28,0.71]
[1763569535061,6.42312582,134.31,134.28,0.71]
[1763569535259,4.90035041,134.34,134.28,0.71]
[1763569535568,6.42312582,134.29,134.28,62.1]
[1763569535740,6.42312582,134.29,134.26,64.74593088]
[1763569536076,6.42312582,134.27,134.26,64.03593088]
[1763569536279,6.42312582,134.27,134.26,1.93593088]
[1763569536789,15.29204041,134.27,134.26,1.93593088]
[1763569537083,15.29412958,134.27,134.26,1.93593088]
[1763569538362,9.850953,134.28,134.26,2.64593088]
[1763569538593,9.850953,134.28,134.26,64.74593088]
[1763569538896,9.850953,134.28,134.26,64.03593088]
[1763569539393,9.850953,134.27,134.26,64.03593088]
[1763569539554,0.67,134.3,134.26,64.03593088]
[1763569539756,9.850953,134.28,134.26,64.03593088]
[1763569539971,6.69978871,134.31,134.26,64.74593088]
[1763569540180,9.850953,134.28,134.26,64.74593088]
[1763569540363,4.89978871,134.31,134.27,0.71]
[1763569540581,5.44190494,134.3,134.27,10.560953]
[1763569540750,5.56728344,134.38,134.29,9.850953]
[1763569540955,9.850953,134.34,134.29,9.850953]
[1763569541156,9.850953,134.35,134.3,10.560953]
[1763569541375,5.44589262,134.34,134.3,10.560953]
[1763569541585,9.850953,134.35,134.31,0.71]
[1763569541885,2.47,134.37,134.31,0.71]
[1763569542061,9.850953,134.35,134.31,0.71]
[1763569542390,9.850953,134.33,134.31,0.71]
[1763569542562,9.850953,134.34,134.31,0.71]
[1763569542759,9.850953,134.37,134.32,9.850953]
[1763569543069,9.850953,134.33,134.3,0.71]
[1763569544271,5.57094492,134.36,134.3,0.71]
[1763569544471,9.850953,134.33,134.3,0.71]
[1763569545084,7.37094492,134.36,134.3,0.71]
[1763569545288,9.850953,134.33,134.3,0.71]
[1763569545482,7.37094492,134.36,134.3,0.71]
[1763569545483,6.70094492,134.36,134.3,0.71]
[1763569545681,9.850953,134.34,134.3,0.71]
[1763569545899,9.850953,134.33,134.3,0.71]
[1763569546401,9.850953,134.32,134.27,62.1]
[1763569546576,9.850953,134.31,134.3,0.71]
[1763569546777,9.850953,134.32,134.3,0.71]
[1763569547779,0.67,134.35,134.3,0.71]
[1763569548092,9.850953,134.32,134.3,0.71]
[1763569548496,9.850953,134.31,134.3,62.1]
[1763569548694,15.29190084,134.31,134.27,62.81]
[1763569548886,5.4406899,134.3,134.26,1.93593088]
[1763569549076,9.850953,134.28,134.26,2.64593088]
[1763569549291,9.850953,134.28,134.26,1.93593088]
[1763569549493,1.8,134.31,134.27,0.71]
[1763569549696,9.850953,134.28,134.26,64.70593088]
[1763569549998,9.850953,134.27,134.26,64.70593088]
[1763569550201,9.850953,134.27,134.26,64.03593088]
[1763569550403,15.2908431,134.27,134.26,64.03593088]
[1763569550787,5.4398901,134.27,134.26,64.03593088]
[1763569551112,15.2908431,134.27,134.26,64.03593088]